Workbook

Sheet Sheet1
A1: MMF | D1: PM Checks
A3: "X"
A5: Undulator | B5: UN 6
A6: Date: | B6: 2009-10-02
A7: Crew: | B7: LG, JM, BR
A9: BUCK IN
A10: Far Value | B10: 0 | C10: PM1 X1
A11: Near Value | B11: 0 | C11: PM 4 X1
A12: 1st Far | B12: 29
A13: 1st. Near | B13: 27.851
A14: 2nd. Far | B14: 27.851
A15: 2nd Near | B15: 27.851
A16: Far Should Read | B16: =BuckIn(B10,B11,B12,B13,B14,B15) -> 27.851
A17: Near Should Read | B17: 27.851
A18: LOS | B18: 27.851
A20: Undulator
A23: 1) | B23: 2) | C23: 3) | D23: 4)
A24: 32.336 | B24: 32.333 | C24: 32.333 | D24: 32.33
A25: 1 | B25: 1 | C25: 1 | D25: 1
A26: =SUM(A24:A25) -> 33.336 | B26: =SUM(B24:B25) -> 33.333 | C26: =SUM(C24:C25) -> 33.333 | D26: =SUM(D24:D25) -> 33.33
A27: =B18 -> 27.851 | B27: =B18 -> 27.851 | C27: =B18 -> 27.851 | D27: =B18 -> 27.851
A28: =SUM(A27-A26) -> -5.485 | B28: =SUM(B27-B26) -> -5.482 | C28: =SUM(C27-C26) -> -5.482 | D28: =SUM(D27-D26) -> -5.479
A30: 5) | B30: 6) | C30: 7) | D30: 8)
A31: 22.552 | B31: 22.548 | C31: 22.547 | D31: 22.548
A32: 1 | B32: 1 | C32: 1 | D32: 1
A33: =SUM(A31:A32) -> 23.552 | B33: =SUM(B31:B32) -> 23.548 | C33: =SUM(C31:C32) -> 23.547 | D33: =SUM(D31:D32) -> 23.548
A34: =B18 -> 27.851 | B34: =B18 -> 27.851 | C34: =B18 -> 27.851 | D34: =B18 -> 27.851
A35: =SUM(A34-A33) -> 4.299 | B35: =SUM(B34-B33) -> 4.303 | C35: =SUM(C34-C33) -> 4.304 | D35: =SUM(D34-D33) -> 4.303
B38: Reference | C38: Block
A40: A) | B40: B) | C40: C) | D40: D)
A41: 33.885 | B41: 29.35 | C41: 27.593 | D41: 27.593
A42: 1 | B42: 1 | C42: 1 | D42: 1
A43: =SUM(A41:A42) -> 34.885 | B43: =SUM(B41:B42) -> 30.35 | C43: =SUM(C41:C42) -> 28.593 | D43: =SUM(D41:D42) -> 28.593
A44: =B18 -> 27.851 | B44: =B18 -> 27.851 | C44: =B18 -> 27.851 | D44: =B18 -> 27.851
A45: =SUM(A44-A43) -> -7.034 | B45: =SUM(B44-B43) -> -2.499 | C45: =SUM(C44-C43) -> -0.742 | D45: =SUM(D44-D43) -> -0.742
A51: MMF | D51: PM Checks
A53: "X"
A55: =B18 -> 27.851 | B55: LOS
A56: Undulator | B56: =B5 -> UN 6
A57: Date: | B57: =B6 -> 2009-10-02
A58: Crew: | B58: =B7 -> LG, JM, BR
B61: PM4
A63: X1) Buck In | B63: Y1) | C63: Y2)
B64: 30.45 | C64: 30.454
B65: 1 | C65: 1
B66: =SUM(B64:B65) -> 31.45 | C66: =SUM(C64:C65) -> 31.454
B67: =B18 -> 27.851 | C67: =B18 -> 27.851
A68: 0 | B68: =SUM(B67-B66) -> -3.599 | C68: =SUM(C67-C66) -> -3.603
B71: PM3
A73: X1) | B73: Y1) | C73: Y2)
A74: 28.731 | B74: 32.328 | C74: 32.327
A75: 1 | B75: 1 | C75: 1
A76: =SUM(A74:A75) -> 29.731 | B76: =SUM(B74:B75) -> 33.328 | C76: =SUM(C74:C75) -> 33.327
A77: =B18 -> 27.851 | B77: =B18 -> 27.851 | C77: =B18 -> 27.851
A78: =SUM(A77-A76) -> -1.88 | B78: =SUM(B77-B76) -> -5.477 | C78: =SUM(C77-C76) -> -5.476
B81: PM 2
A82: X1) | B82: Y1) | C82: Y2)
A83: 28.727 | B83: 32.324 | C83: 32.323
A84: 1 | B84: 1 | C84: 1
A85: =SUM(A83:A84) -> 29.727 | B85: =SUM(B83:B84) -> 33.324 | C85: =SUM(C83:C84) -> 33.323
A86: =B18 -> 27.851 | B86: =B18 -> 27.851 | C86: =B18 -> 27.851
A87: =SUM(A86-A85) -> -1.876 | B87: =SUM(B86-B85) -> -5.473 | C87: =SUM(C86-C85) -> -5.472
B90: PM1
A91: X1) Buck In | B91: Y1) | C91: Y2)
B92: 30.452 | C92: 30.445
B93: 1 | C93: 1
B94: =SUM(B92:B93) -> 31.452 | C94: =SUM(C92:C93) -> 31.445
B95: =B18 -> 27.851 | C95: =B18 -> 27.851
A96: 0 | B96: =SUM(B95-B94) -> -3.601 | C96: =SUM(C95-C94) -> -3.594
A101: MMF | D101: PM Checks
A103: "Y" | C103: PM4Y1 | D103: PM1Y1
C104: 7.923 | D104: 7.943
C105: 1 | D105: 1
A106: Undulator | B106: =B5 -> UN 6 | C106: =SUM(C104+C105) -> 8.923 | D106: =SUM(D104+D105) -> 8.943
A107: Date: | B107: =B6 -> 2009-10-02
A108: Crew: | B108: =B7 -> LG, JM, BR
C109: HI = | D109: =AVERAGE(C106,D106) -> 8.933
A111: PM4 | C111: PM3
A113: Y1) | B113: X1) | C113: Y2) | D113: X1
A114: =C104 -> 7.923 | B114: 11.531 | C114: 7.927 | D114: 11.53
A115: 1 | B115: 1 | C115: 1 | D115: 1
A116: =SUM(A114:A115) -> 8.923 | B116: =SUM(B114:B115) -> 12.531 | C116: =SUM(C114:C115) -> 8.927 | D116: =SUM(D114:D115) -> 12.53
A117: =D109 -> 8.933 | B117: =D109 -> 8.933 | C117: =D109 -> 8.933 | D117: =D109 -> 8.933
A118: =SUM(A117-A116) -> 0.01 | B118: =SUM(B117-B116) -> -3.598 | C118: =SUM(C117-C116) -> 0.006 | D118: =SUM(D117-D116) -> -3.597
A121: PM2 | C121: PM1
A123: Y1) | B123: X1) | C123: Y1) | D123: X1)
A124: 7.941 | B124: 11.541 | C124: =D104 -> 7.943 | D124: 11.544
A125: 1 | B125: 1 | C125: 1 | D125: 1
A126: =SUM(A124:A125) -> 8.941 | B126: =SUM(B124:B125) -> 12.541 | C126: =SUM(C124:C125) -> 8.943 | D126: =SUM(D124:D125) -> 12.544
A127: =D109 -> 8.933 | B127: =D109 -> 8.933 | C127: =D109 -> 8.933 | D127: =D109 -> 8.933
A128: =SUM(A127-A126) -> -0.008 | B128: =SUM(B127-B126) -> -3.608 | C128: =SUM(C127-C126) -> -0.01 | D128: =SUM(D127-D126) -> -3.611
A135: Top Of Gage Block | C135: Probe Location in (X)
A137: 13.324 | C137: -5.47 | D137: LOS
A138: =D109 -> 8.933 | C138: 0.02 | D138: Mic To Plus Edge
A139: =SUM(A138-A137) -> -4.391 | C139: =SUM(C137+C138) -> -5.45
C140: -0.039
C141: =(C139+C140) -> -5.489 | D141: Probe Location
A151: MMF | D151: PM Checks
A153: "Y"
A155: Undulator | B155: =B5 -> UN 6
A156: Date: | B156: =B6 -> 2009-10-02
A157: Crew: | B157: =B7 -> LG, JM, BR
A160: HI = | B160: =D109 -> 8.933
A162: Undulator
A164: 1) | B164: 2) | C164: 3) | D164: 4)
A165: 4.448 | B165: 4.454 | C165: 4.458 | D165: 4.458
A166: 1 | B166: 1 | C166: 1 | D166: 1
A167: =SUM(A165:A166) -> 5.448 | B167: =SUM(B165:B166) -> 5.454 | C167: =SUM(C165:C166) -> 5.458 | D167: =SUM(D165:D166) -> 5.458
A168: =D109 -> 8.933 | B168: =D109 -> 8.933 | C168: =D109 -> 8.933 | D168: =D109 -> 8.933
A169: =SUM(A168-A167) -> 3.485 | B169: =SUM(B168-B167) -> 3.479 | C169: =SUM(C168-C167) -> 3.475 | D169: =SUM(D168-D167) -> 3.475
A172: 5) | B172: 6) | C172: 7) | D172: 8)
A173: 11.529 | B173: 11.535 | C173: 11.534 | D173: 11.536
A174: 1 | B174: 1 | C174: 1 | D174: 1
A175: =SUM(A173+A174) -> 12.529 | B175: =SUM(B173+B174) -> 12.535 | C175: =SUM(C173+C174) -> 12.534 | D175: =SUM(D173+D174) -> 12.536
A176: =D109 -> 8.933 | B176: =D109 -> 8.933 | C176: =D109 -> 8.933 | D176: =D109 -> 8.933
A177: =SUM(A176-A175) -> -3.596 | B177: =SUM(B176-B175) -> -3.602 | C177: =SUM(C176-C175) -> -3.601 | D177: =SUM(D176-D175) -> -3.603
A181: Reference Block
A183: A) | B183: B) | C183: C) | D183: D)
A184: 8.162 | C184: 10.307 | D184: 13.389
A185: 1 | C185: 1 | D185: 1
A186: =SUM(A184+A185) -> 9.162 | C186: =SUM(C184+C185) -> 11.307 | D186: =SUM(D184+D185) -> 14.389
A187: =D109 -> 8.933 | C187: =D109 -> 8.933 | D187: =D109 -> 8.933
A188: =SUM(A187-A186) -> -0.229 | B188: 0 | C188: =SUM(C187-C186) -> -2.374 | D188: =SUM(D187-D186) -> -5.456
A191: Flats
A193: U/S | C193: D/S
A194: (+) | B194: (-) | C194: (+) | D194: (-)
A195: 7.212 | B195: 7.212 | C195: 7.222 | D195: 7.223
A196: =D109 -> 8.933 | B196: =D109 -> 8.933 | C196: =D109 -> 8.933 | D196: =D109 -> 8.933
A197: =SUM(A196-A195) -> 1.721 | B197: =SUM(B196-B195) -> 1.721 | C197: =SUM(C196-C195) -> 1.711 | D197: =SUM(D196-D195) -> 1.71

Sheet Sheet2
A2: Undulator | C2: =Sheet1!B5 -> UN 6
A3: Date | C3: =Sheet1!B6 -> 2009-10-02
A4: Crew | C4: =Sheet1!B7 -> LG, JM, BR
A7: Undulator Values
A9: TB | B9: Y (in) | C9: Y (mm) | F9: TB | G9: X (in) | H9: X (mm)
A10: 1 | B10: =Sheet1!A169 -> 3.485 | C10: =B10*25.4 -> 88.519 | F10: 5 | G10: =Sheet1!A35 -> 4.299 | H10: =G10*25.4 -> 109.1946
A11: 2 | B11: =Sheet1!B169 -> 3.479 | C11: =B11*25.4 -> 88.3666 | F11: 6 | G11: =Sheet1!B35 -> 4.303 | H11: =G11*25.4 -> 109.2962
A12: 3 | B12: =Sheet1!C169 -> 3.475 | C12: =B12*25.4 -> 88.265 | F12: 7 | G12: =Sheet1!C35 -> 4.304 | H12: =G12*25.4 -> 109.3216
A13: 4 | B13: =Sheet1!D169 -> 3.475 | C13: =B13*25.4 -> 88.265 | F13: 8 | G13: =Sheet1!D35 -> 4.303 | H13: =G13*25.4 -> 109.2962
A16: PM Values
C18: Upstream | E18: (PM 3) | G18: Checks
A19: TB | B19: X (in) | C19: Y (in) | D19: X (mm) | E19: Y (mm) | G19: X (mm) | H19: Y (mm)
A20: Y2 | B20: =Sheet1!C78 -> -5.476 | C20: =Sheet1!C118 -> 0.006 | D20: =B20*25.4 -> -139.0904 | E20: =C20*25.4 -> 0.1524 | G20: =H10-D21 -> 156.9466 | H20: =C10-E20 -> 88.3666
A21: X1 | B21: =Sheet1!A78 -> -1.88 | C21: =Sheet1!D118 -> -3.597 | D21: =B21*25.4 -> -47.752 | E21: =C21*25.4 -> -91.3638
A22: Y1 | B22: =Sheet1!B78 -> -5.477 | D22: =B22*25.4 -> -139.1158
C24: Downstream | E24: (PM 2) | G24: Checks
A25: TB | B25: X (in) | C25: Y (in) | D25: X (mm) | E25: Y (mm) | G25: X (mm) | H25: Y (mm)
A26: Y1 | B26: =Sheet1!B87 -> -5.473 | C26: =Sheet1!A128 -> -0.008 | D26: =B26*25.4 -> -139.0142 | E26: =C26*25.4 -> -0.2032 | G26: =H13-D27 -> 156.9466 | H26: =C13-E26 -> 88.4682
A27: X1 | B27: =Sheet1!A87 -> -1.876 | C27: =Sheet1!B128 -> -3.608 | D27: =B27*25.4 -> -47.6504 | E27: =C27*25.4 -> -91.6432
A28: Y2 | B28: =Sheet1!C87 -> -5.472 | C28: \ | D28: =B28*25.4 -> -138.9888
B33: Probe | F33: Flats
B35: X (in) | C35: X (mm) | F35: Y(in) | G35: Y(mm)
B36: =Sheet1!C141 -> -5.489 | C36: =B36*25.4 -> -139.4206 | E36: US + | F36: =Sheet1!A197 -> 1.721 | G36: =F36*25.4 -> 43.7134
E37: US - | F37: =Sheet1!B197 -> 1.721 | G37: =F37*25.4 -> 43.7134
E38: DS + | F38: =Sheet1!C197 -> 1.711 | G38: =F38*25.4 -> 43.4594
C39: Top of Gage Block | E39: DS - | F39: =Sheet1!D197 -> 1.71 | G39: =F39*25.4 -> 43.434
B41: Y (in) | C41: Y (mm)
B42: =Sheet1!A139 -> -4.391 | C42: =B42*25.4 -> -111.5314

Sheet Sheet3
A2: Undulator | C2: =Sheet1!B5 -> UN 6
A3: Date | C3: =Sheet1!B6 -> 2009-10-02
A4: Crew | C4: =Sheet1!B7 -> LG, JM, BR
C7: Undulator Values
A9: TB | B9: X (in) | C9: Y (in) | D9: X (mm) | E9: Y (mm) | G9: Probe
A10: 1 | B10: =Sheet1!A28 -> -5.485 | C10: =Sheet1!A169 -> 3.485 | D10: =SUM(B10*25.4) -> -139.319 | E10: =SUM(D10*25.4) -> -3538.7026
A11: 2 | B11: =Sheet1!B28 -> -5.482 | C11: =Sheet1!B169 -> 3.479 | D11: =SUM(B11*25.4) -> -139.2428 | E11: =SUM(D11*25.4) -> -3536.76712 | G11: X (in) | H11: X (mm)
A12: 3 | B12: =Sheet1!C28 -> -5.482 | C12: =Sheet1!C169 -> 3.475 | D12: -139.2428 | E12: -3536.76712 | G12: =Sheet1!C141 -> -5.489 | H12: =SUM(G12*25.4) -> -139.4206
A13: 4 | B13: =Sheet1!D28 -> -5.479 | C13: =Sheet1!D169 -> 3.475 | D13: -139.1666 | E13: -3534.83164
A14: 5 | B14: =Sheet1!A35 -> 4.299 | C14: =Sheet1!A177 -> -3.596 | D14: 109.1946 | E14: 2773.54284
A15: 6 | B15: =Sheet1!B35 -> 4.303 | C15: =Sheet1!B177 -> -3.602 | D15: 109.2962 | E15: 2776.12348 | G15: Top of Gage Block
A16: 7 | B16: =Sheet1!C35 -> 4.304 | C16: =Sheet1!C177 -> -3.601 | D16: 109.3216 | E16: 2776.76864
A17: 8 | B17: =Sheet1!D35 -> 4.303 | C17: =Sheet1!D177 -> -3.603 | D17: 109.2962 | E17: 2776.12348 | G17: Y (in) | H17: Y (mm)
G18: =Sheet1!A139 -> -4.391 | H18: =SUM(G18*25.4) -> -111.5314
C19: Undulator PM Values
C21: Upstream | E21: (PM 3)
A22: TB | B22: X (in) | C22: Y (in) | D22: X (mm) | E22: Y (mm) | G22: Flats
A23: Y2 | B23: =Sheet1!A78 -> -1.88 | C23: =Sheet1!C118 -> 0.006 | D23: =SUM(B23*25.4) -> -47.752 | E23: =SUM(C23*25.4) -> 0.1524
A24: X1 | B24: =Sheet1!A78 -> -1.88 | C24: =Sheet1!D118 -> -3.597 | D24: =SUM(B24*25.4) -> -47.752 | E24: =SUM(C24*25.4) -> -91.3638 | H24: Y(in) | I24: Y(mm)
A25: Y1 | B25: =Sheet1!B78 -> -5.477 | D25: =SUM(B25*25.4) -> -139.1158 | G25: US + | H25: =Sheet1!A197 -> 1.721 | I25: =SUM(H25*25.4) -> 43.7134
G26: US - | H26: =Sheet1!B197 -> 1.721 | I26: =SUM(H26*25.4) -> 43.7134
C27: Downstream | E27: (PM 2) | G27: DS + | H27: =Sheet1!C197 -> 1.711 | I27: =SUM(H27*25.4) -> 43.4594
A28: TB | B28: X (in) | C28: Y (in) | D28: X (mm) | E28: Y (mm) | G28: DS - | H28: =Sheet1!D197 -> 1.71 | I28: =SUM(H28*25.4) -> 43.434
A29: Y1 | B29: =Sheet1!B87 -> -5.473 | C29: =Sheet1!A128 -> -0.008 | D29: =SUM(B29*25.4) -> -139.0142 | E29: =SUM(C29*25.4) -> -0.2032
A30: X1 | B30: =Sheet1!A87 -> -1.876 | C30: =Sheet1!B128 -> -3.608 | D30: =SUM(B30*25.4) -> -47.6504 | E30: =SUM(C30*25.4) -> -91.6432
A31: Y2 | B31: =Sheet1!C87 -> -5.472 | D31: =SUM(B31*25.4) -> -138.9888
C33: Ref. PM Values
C35: Upstream | E35: (PM 4)
A36: TB | B36: X (in) | C36: Y (in) | D36: X (mm) | E36: Y (mm)
A37: Y1 | B37: =Sheet1!B68 -> -3.599 | C37: =Sheet1!A118 -> 0.01 | D37: =SUM(B37*25.4) -> -91.4146 | E37: =SUM(C37*25.4) -> 0.254
A38: X1 | B38: 0 | C38: =Sheet1!B118 -> -3.598 | D38: 0 | E38: =SUM(C38*25.4) -> -91.3892
A39: Y2 | B39: =Sheet1!C68 -> -3.603 | D39: =SUM(B39*25.4) -> -91.5162
C41: Downstream | E41: (PM 1)
A42: TB | B42: X (in) | C42: Y (in) | D42: X (mm) | E42: Y (mm)
A43: Y1 | B43: =Sheet1!B96 -> -3.601 | C43: =Sheet1!C128 -> -0.01 | D43: =SUM(B43*25.4) -> -91.4654 | E43: =SUM(C43*25.4) -> -0.254
A44: X1 | B44: 0 | C44: =Sheet1!D128 -> -3.611 | D44: 0 | E44: =SUM(C44*25.4) -> -91.7194
A45: Y2 | B45: =Sheet1!C96 -> -3.594 | D45: =SUM(B45*25.4) -> -91.2876
C47: Ref. Block
A48: TB | B48: X (in) | C48: Y (in) | D48: X (mm) | E48: Y (mm)
A49: A | B49: =Sheet1!A45 -> -7.034 | C49: =Sheet1!A188 -> -0.229 | D49: =SUM(B49*25.4) -> -178.6636 | E49: =SUM(C49*25.4) -> -5.8166
A50: B | B50: =Sheet1!B45 -> -2.499 | D50: =SUM(B50*25.4) -> -63.4746
A51: C | B51: =Sheet1!C45 -> -0.742 | C51: =Sheet1!C188 -> -2.374 | D51: =SUM(B51*25.4) -> -18.8468 | E51: =SUM(C51*25.4) -> -60.2996
A52: D | B52: =Sheet1!D45 -> -0.742 | C52: =Sheet1!D188 -> -5.456 | D52: =SUM(B52*25.4) -> -18.8468 | E52: =SUM(C52*25.4) -> -138.5824
